{"text_format":"3","workbook":"xlsx","n_sheets":2,"sheets":["Utgifter","Kategori"],"not_rendered":{"defined_names":5},"read":"whole","date_system":"1900"}

{"sheet":"Utgifter","index":0,"n_rows":25,"n_cols":7,"rows_kept":25,"merged":[[0,1,0,5],[1,1,1,5]]}
[null,"UTGIFTSBUDGET",{"$nulls":4},{"$f":"TODAY()","v":{"v":44575,"d":"4457500.00%"}}]
[null,"Företagets namn"]
[null,"Utgift","Kategori","Budget","Faktiskt","Differens (SEK)","Differens (%)"]
[null,"Reklam","Verksamhet",null,null,{"$f":"IFERROR(SUM(Utgifter[[#This Row],[Budget]]-Utgifter[[#This Row],[Faktiskt]]), \"\")","v":0},{"$f":"IFERROR(SUM(Utgifter[[#This Row],[Differens (SEK)]]/Utgifter[[#This Row],[Budget]]),\"\")","v":""}]
[null,"Skulder","Verksamhet",null,null,{"$f":"IFERROR(SUM(Utgifter[[#This Row],[Budget]]-Utgifter[[#This Row],[Faktiskt]]), \"\")","v":0},{"$f":"IFERROR(SUM(Utgifter[[#This Row],[Differens (SEK)]]/Utgifter[[#This Row],[Budget]]),\"\")","v":""}]
[null,"Förmåner","Verksamhet",null,null,{"$f":"IFERROR(SUM(Utgifter[[#This Row],[Budget]]-Utgifter[[#This Row],[Faktiskt]]), \"\")","v":0},{"$f":"IFERROR(SUM(Utgifter[[#This Row],[Differens (SEK)]]/Utgifter[[#This Row],[Budget]]),\"\")","v":""}]
[null,"Material","Verksamhet",null,null,{"$f":"IFERROR(SUM(Utgifter[[#This Row],[Budget]]-Utgifter[[#This Row],[Faktiskt]]), \"\")","v":0},{"$f":"IFERROR(SUM(Utgifter[[#This Row],[Differens (SEK)]]/Utgifter[[#This Row],[Budget]]),\"\")","v":""}]
[null,"Porto","Verksamhet",null,null,{"$f":"IFERROR(SUM(Utgifter[[#This Row],[Budget]]-Utgifter[[#This Row],[Faktiskt]]), \"\")","v":0},{"$f":"IFERROR(SUM(Utgifter[[#This Row],[Differens (SEK)]]/Utgifter[[#This Row],[Budget]]),\"\")","v":""}]
[null,"Hyra eller amortering","Verksamhet",null,null,{"$f":"IFERROR(SUM(Utgifter[[#This Row],[Budget]]-Utgifter[[#This Row],[Faktiskt]]), \"\")","v":0},{"$f":"IFERROR(SUM(Utgifter[[#This Row],[Differens (SEK)]]/Utgifter[[#This Row],[Budget]]),\"\")","v":""}]
[null,"Försäljningsutgifter","Verksamhet",null,null,{"$f":"IFERROR(SUM(Utgifter[[#This Row],[Budget]]-Utgifter[[#This Row],[Faktiskt]]), \"\")","v":0},{"$f":"IFERROR(SUM(Utgifter[[#This Row],[Differens (SEK)]]/Utgifter[[#This Row],[Budget]]),\"\")","v":""}]
[null,"Skatt","Verksamhet",null,null,{"$f":"IFERROR(SUM(Utgifter[[#This Row],[Budget]]-Utgifter[[#This Row],[Faktiskt]]), \"\")","v":0},{"$f":"IFERROR(SUM(Utgifter[[#This Row],[Differens (SEK)]]/Utgifter[[#This Row],[Budget]]),\"\")","v":""}]
[null,"Värme och vatten","Verksamhet",null,null,{"$f":"IFERROR(SUM(Utgifter[[#This Row],[Budget]]-Utgifter[[#This Row],[Faktiskt]]), \"\")","v":0},{"$f":"IFERROR(SUM(Utgifter[[#This Row],[Differens (SEK)]]/Utgifter[[#This Row],[Budget]]),\"\")","v":""}]
[null,"Övrigt","Verksamhet",null,null,{"$f":"IFERROR(SUM(Utgifter[[#This Row],[Budget]]-Utgifter[[#This Row],[Faktiskt]]), \"\")","v":0},{"$f":"IFERROR(SUM(Utgifter[[#This Row],[Differens (SEK)]]/Utgifter[[#This Row],[Budget]]),\"\")","v":""}]
[null,"Försäkring","Verksamhet",null,null,{"$f":"IFERROR(SUM(Utgifter[[#This Row],[Budget]]-Utgifter[[#This Row],[Faktiskt]]), \"\")","v":0},{"$f":"IFERROR(SUM(Utgifter[[#This Row],[Differens (SEK)]]/Utgifter[[#This Row],[Budget]]),\"\")","v":""}]
[null,"Ränta","Verksamhet",null,null,{"$f":"IFERROR(SUM(Utgifter[[#This Row],[Budget]]-Utgifter[[#This Row],[Faktiskt]]), \"\")","v":0},{"$f":"IFERROR(SUM(Utgifter[[#This Row],[Differens (SEK)]]/Utgifter[[#This Row],[Budget]]),\"\")","v":""}]
[null,"Telefon","Verksamhet",null,null,{"$f":"IFERROR(SUM(Utgifter[[#This Row],[Budget]]-Utgifter[[#This Row],[Faktiskt]]), \"\")","v":0},{"$f":"IFERROR(SUM(Utgifter[[#This Row],[Differens (SEK)]]/Utgifter[[#This Row],[Budget]]),\"\")","v":""}]
[null,"Underhåll eller reparationer","Verksamhet",null,null,{"$f":"IFERROR(SUM(Utgifter[[#This Row],[Budget]]-Utgifter[[#This Row],[Faktiskt]]), \"\")","v":0},{"$f":"IFERROR(SUM(Utgifter[[#This Row],[Differens (SEK)]]/Utgifter[[#This Row],[Budget]]),\"\")","v":""}]
[null,"Juridiska avgifter","Verksamhet",null,null,{"$f":"IFERROR(SUM(Utgifter[[#This Row],[Budget]]-Utgifter[[#This Row],[Faktiskt]]), \"\")","v":0},{"$f":"IFERROR(SUM(Utgifter[[#This Row],[Differens (SEK)]]/Utgifter[[#This Row],[Budget]]),\"\")","v":""}]
[null,"Avskrivning","Verksamhet",null,null,{"$f":"IFERROR(SUM(Utgifter[[#This Row],[Budget]]-Utgifter[[#This Row],[Faktiskt]]), \"\")","v":0},{"$f":"IFERROR(SUM(Utgifter[[#This Row],[Differens (SEK)]]/Utgifter[[#This Row],[Budget]]),\"\")","v":""}]
[null,"Frakt","Verksamhet",null,null,{"$f":"IFERROR(SUM(Utgifter[[#This Row],[Budget]]-Utgifter[[#This Row],[Faktiskt]]), \"\")","v":0},{"$f":"IFERROR(SUM(Utgifter[[#This Row],[Differens (SEK)]]/Utgifter[[#This Row],[Budget]]),\"\")","v":""}]
[null,"Lager","Verksamhet",null,null,{"$f":"IFERROR(SUM(Utgifter[[#This Row],[Budget]]-Utgifter[[#This Row],[Faktiskt]]), \"\")","v":0},{"$f":"IFERROR(SUM(Utgifter[[#This Row],[Differens (SEK)]]/Utgifter[[#This Row],[Budget]]),\"\")","v":""}]
[null,"Butik","Privat",null,null,{"$f":"IFERROR(SUM(Utgifter[[#This Row],[Budget]]-Utgifter[[#This Row],[Faktiskt]]), \"\")","v":0},{"$f":"IFERROR(SUM(Utgifter[[#This Row],[Differens (SEK)]]/Utgifter[[#This Row],[Budget]]),\"\")","v":""}]
[null,"Säljare","Privat",null,null,{"$f":"IFERROR(SUM(Utgifter[[#This Row],[Budget]]-Utgifter[[#This Row],[Faktiskt]]), \"\")","v":0},{"$f":"IFERROR(SUM(Utgifter[[#This Row],[Differens (SEK)]]/Utgifter[[#This Row],[Budget]]),\"\")","v":""}]
[null,"Övrigt","Privat",null,null,{"$f":"IFERROR(SUM(Utgifter[[#This Row],[Budget]]-Utgifter[[#This Row],[Faktiskt]]), \"\")","v":0},{"$f":"IFERROR(SUM(Utgifter[[#This Row],[Differens (SEK)]]/Utgifter[[#This Row],[Budget]]),\"\")","v":""}]
[null,"Summa utgifter",null,{"$f":"IFERROR(SUM(Utgifter[Budget]), \"\")","v":0},{"$f":"IFERROR(SUM(Utgifter[Faktiskt]), \"\")","v":0},{"$f":"IFERROR(SUM(Utgifter[Differens (SEK)]), \"\")","v":0},{"$f":"IFERROR(SUM(Utgifter[[#Totals],[Differens (SEK)]]/Utgifter[[#Totals],[Budget]]),\"\")","v":""}]

{"sheet":"Kategori","index":1,"n_rows":4,"n_cols":2,"rows_kept":4}
[null,"Kategorisökning"]
[null,"Kategori"]
[null,"Verksamhet"]
[null,"Privat"]